{"text_format":"1","workbook":"xlsx","n_sheets":1,"sheets":["Questão A1"],"not_rendered":{"charts":0,"images":0,"macros":1,"external_links":0,"defined_names":0,"comments":0,"pivot_tables":0},"unopened":[],"bounds":{"document_bytes":16777216,"sheet_cells":100000,"rows_first":2000,"rows_last":500,"rows_between":2000,"halvings":0,"cell_chars":16384,"cell_head_chars":4096},"cells_cut":0,"cells_raw":0,"read":"whole","date_system":"1900"}

{"sheet":"Questão A1","index":0,"n_rows":38,"n_cols":4,"rows_kept":38,"cut":false,"hidden":false,"merged":[[22,2,22,3]]}
[]
[null,"Situação inicial"]
[null,"● A situação é de uma planilha que eu construo e distribuo a vários usuários."]
[null,"● Cada usuário altera os dados iniciais para poder analisar sua situação particular."]
[null,"● Neste exemplo, um usuário altera a Qtde de meses de 10 para 15."]
[null,"● E tem que manualmente inserir mais 5 linhas antes da linha de Total."]
[null,"● São usuários com pouca prática de Excel, e algumas tabelas são muito compridas e largas (coisa de mais de 200 linhas e mais de 100 colunas)."]
[null,"● Estou procurando simplificar o máximo, o ideal é que só precise alterar os dados iniciais (no exemplo só a Qtde de meses)."]
[null,"● Com algumas soluções que vocês deram, resolvi o problema de terem que corrigir manualmente o Total (Usei INDIRETO + ENDEREÇO + LIN)."]
[null,"   Além de vários outros problemas, só que esses outros eram problemas meus (PROCV e SOMASES), não dos usuários."]
[null,"● Já ajudou MUITO."]
[null,"● Questão:"]
[null,"    Existe algum recurso para a linha 34 ser copiada automaticamente 5 vezes, quando a Qtde de meses é alterada de 10 para 15 ???"]
[]
[]
[null,"Qtde meses"]
[null,10]
[]
[null,"Valor base"]
[null,100]
[]
[]
[null,null,"Tabela 01"]
[null,null,"Mês","Valor"]
[null,null,1,{"$f":"$B$20*C25","v":100}]
[null,null,{"$f":"C25+1","v":2},200]
[null,null,{"$f":"C26+1","v":3},{"$f":"$B$20*C27","v":300}]
[null,null,4,400]
[null,null,5,500]
[null,null,6,600]
[null,null,7,700]
[null,null,8,800]
[null,null,9,900]
[null,null,10,1000]
[null,null,"Total",{"$f":"SUM(D25:INDIRECT(ADDRESS(ROW($D$35)-1,4)))","v":5500}]
[]
[null,null,"Solução 1 para Total."]
[null,null,"SOMA(D25:INDIRETO(ENDEREÇO(LIN($D$35)-1;4)))"]